Cogmind - Beta 9.4 @@@ ROGUE MODE // 2020.03.10 @ 22:35:17 Player: Starwell Result: Destroyed by Y-45 Defender with Beam Rifle Performance ------------- Evolutions (1) 500 Regions Visited (2) 400 Robots Destroyed (0) 0 Value Destroyed (0) 0 Prototype IDs (0) 0 Alien Tech Used (0) 0 Bonus (200) 200 TOTAL SCORE: 1100 Bonus ------- Pacifist 200 Cogmind --------- Core Integrity 0/400 Matter 275/300 Energy 62/100 System Corruption 0% Temperature Cool (9) Movement Core (50) Location -9/Materials Parts ------- > --- POWER (1) -------- (None) > --- PROPULSION (2) --- (None) > --- UTILITY (4) ------ Signal Interpreter Terrain Scan Processor Targeting Computer ECM Suite > --- WEAPON (2) ------- (None) > --- INVENTORY (4) ---- Light Nuclear Core System Shield System Shield System Shield Peak State ------------ > --- POWER ------------ Light Ion Engine > --- PROPULSION ------- Hover Unit > --- UTILITY ---------- Signal Interpreter Targeting Computer > --- WEAPON ----------- Mining Laser Mining Laser > --- INVENTORY -------- High-capacity Matter Pod Light Armor Plating Mining Laser Mining Laser [Rating: 6] Favorites ----------- Power Light Ion Engine Engine Light Ion Engine Propulsion Hover Unit Hover Unit Hover Unit Utility Targeting Computer Device ECM Suite Processor Targeting Computer Hackware System Shield Protection Light Armor Plating Weapon Mining Laser Special Weapon Mining Laser Build | -11 -10 -9 ------- Run | Scr Mat Mat Slots Evolved 2 | . . 2 Power . | . . . Propulsion . | . . . Utility 2 | . . 2 Weapon . | . . . Parts Attached 12 | 1 6 5 Power 1 | 1 . . Engine 1 | 1 . . Core . | . . . Reactor . | . . . Propulsion 1 | . 1 . Treads . | . . . Leg . | . . . Wheel . | . . . Hover 1 | . 1 . Flight . | . . . Utility 6 | . 2 4 Device 1 | . . 1 Storage . | . . . Processor 3 | . 2 1 Hackware 1 | . . 1 Protection 1 | . . 1 Artifact . | . . . Weapon 4 | . 3 1 Energy Gun . | . . . Energy Cannon . | . . . Ballistic Gun . | . . . Ballistic Cannon . | . . . Launcher . | . . . Special Weapon 4 | . 3 1 Impact Weapon . | . . . Slashing Weapon . | . . . Piercing Weapon . | . . . Special Melee Weapon . | . . . Unidentified Prototypes . | . . . Parts Lost 6 | . 2 4 Power . | . . . Propulsion 1 | . 1 . Utility 2 | . . 2 Weapon 3 | . 1 2 Highest Loss Streak 2 | . 1 2 Average Slot Usage (%) 48 | . 62 32 Engine 5 | . 10 . Hover 5 | . 10 . Processor 20 | . 17 23 Special Weapon 14 | . 23 4 Naked Turns . | . . . Heaviest Build 5 | 3 5 3 Greatest Support 6 | 3 6 3 Greatest Overweight (x) . | . . . Average Overweight (x) . | . . . Largest Inventory Capacity 4 | 4 4 4 Average Capacity 4 | 4 4 4 Most Carried 4 | . 4 4 Average Carried 3 | . 3 3 Final Capacity 4 | 4 4 4 Final Carried 4 | . 4 4 Class Distribution -------------------- 100% | Mutant Dominant Class ---------------- Mutant | -10/Materials Mutant | -9/Materials Resources | -11 -10 -9 ----------- Run | Scr Mat Mat Matter Collected 308 | 201 . 107 Remotely . | . . . Salvage Created . | . . . Parts . | . . . Haulers Intercepted . | . . . Recyclers Shooed . | . . . Parts Field Recycled . | . . . Retrieved Matter . | . . . Parts Self-Destructed . | . . . Prevented . | . . . Kills | -11 -10 -9 ------- Run | Scr Mat Mat Combat Hostiles Destroyed . | . . . Classes Destroyed . | . . . Best Kill Streak . | . . . Combat Bots Only . | . . . Max Kills in Single Turn . | . . . Gunslinging . | . . . Exploded . | . . . Melee . | . . . Uniques/NPCs Destroyed . | . . . Combat | -11 -10 -9 -------- Run | Scr Mat Mat Damage Taken 685 | . 112 573 Core 416 | . 15 401 Absorbed by Shields . | . . . Core Remaining (%) 97 | 100 94 . Volleys Fired 4 | . 3 1 Largest 1 | . 1 1 Hottest 100 | . 100 100 Shots Fired 4 | . 3 1 Gun . | . . . Cannon . | . . . Launcher . | . . . Special 4 | . 3 1 Kinetic . | . . . Thermal 4 | . 3 1 Explosive . | . . . Electromagnetic . | . . . Robot Hit Streak . | . . . Robot Miss Streak . | . . . Penetration Max . | . . . Secondary Targets . | . . . Shots Hit Robots . | . . . Core Hits . | . . . Critical Hits . | . . . Critical Kills . | . . . Critical Parts Destroyed . | . . . Melee Attacks . | . . . Impact . | . . . Slashing . | . . . Piercing . | . . . Sneak Attacks . | . . . Combat Hostiles . | . . . Follow-up Attacks . | . . . Damage Inflicted . | . . . Guns . | . . . Cannons . | . . . Explosions . | . . . Melee . | . . . Ramming . | . . . Kinetic . | . . . Thermal . | . . . Explosive . | . . . Electromagnetic . | . . . Impact . | . . . Slashing . | . . . Piercing . | . . . Highest Corruption 1 | . 1 . Average Corruption 1 | . 1 . Corruption Purged . | . . . Effects 1 | . 1 . Data Loss (minor) 1 | . 1 . Overload Shots . | . . . Overflow Damage . | . . . Projectiles . | . . . Explosions . | . . . Melee . | . . . Knockbacks . | . . . Impact . | . . . Kinetic . | . . . Secondary . | . . . Self-Inflicted Damage . | . . . Shots . | . . . Rammed . | . . . Targets Rammed . | . . . Kicked . | . . . Crushed . | . . . Highest Temperature 25 | . 25 . Average Temperature 14 | . 14 . Received Heat Transfer 192 | . 51 141 Siege Activations . | . . . Robots Corrupted . | . . . Combat Hostiles . | . . . Parts Fried . | . . . Impact Corruptions . | . . . Robots Melted . | . . . Combat Hostiles . | . . . Parts Melted . | . . . Heat Transferred . | . . . Parts Sabotaged . | . . . Parts Stolen . | . . . Parts Stripped . | . . . Power Chain Reactions . | . . . Missiles Intercepted . | . . . Alert | -11 -10 -9 ------- Run | Scr Mat Mat Peak Influence 85 | . . 85 Average Influence 21 | . . 47 Maximum Alert Level . | . . . Low Security (%) 100 | 100 100 100 Level 1 . | . . . Level 2 . | . . . Level 3 . | . . . Level 4 . | . . . Level 5 . | . . . High Security . | . . . Max Security . | . . . Squads Dispatched 3 | . 1 2 Investigation 1 | . . 1 Extermination . | . . . Reinforcement 2 | . 1 1 Assault . | . . . Garrison . | . . . Intercept . | . . . Construction Impeded . | . . . Haulers Reinforced . | . . . Stealth | -11 -10 -9 --------- Run | Scr Mat Mat Distress Signals 1 | . . 1 Communications Jammed . | . . . Distress Signals . | . . . Times Spotted 27 | . 11 16 Peak Tracking Total 12 | . 4 12 Tactical Retreats 5 | . 3 2 Traps | -11 -10 -9 ------- Run | Scr Mat Mat Traps Triggered 1 | . 1 . Indirectly . | . . . Trap Hack Attempts . | . . . Triggered . | . . . Disarmed . | . . . Reprogrammed . | . . . Reused . | . . . Traps Extracted . | . . . Installed . | . . . Triggered . | . . . Machines | -11 -10 -9 ---------- Run | Scr Mat Mat Machines Disabled . | . . . Max in Single Turn . | . . . Machines Sabotaged . | . . . Garrisons Compromised . | . . . Overloaded Fab Kills . | . . . Fab Network Shutdowns . | . . . Hacking | -11 -10 -9 --------- Run | Scr Mat Mat Machines Accessed 8 | . 3 5 Terminals 5 | . 2 3 Fabricators . | . . . Repair Stations 1 | . . 1 Recycling Units 2 | . 1 1 Scanalyzers . | . . . Garrison Access . | . . . Total Hacks 18 | . 6 12 Successful 7 | . 2 5 Failed 11 | . 4 7 Catastrophic . | . . . Database Lockouts . | . . . Manual 6 | . 4 2 Terminals 13 | . 4 9 Fabricators . | . . . Repair Stations 2 | . . 2 Recycling Units 3 | . 2 1 Scanalyzers . | . . . Garrison Access . | . . . Terminal Hacks 4 | . . 4 Locate Traps 1 | . . 1 Investigation Status 1 | . . 1 Zone Layout 2 | . . 2 Fabricator Hacks . | . . . Repair Station Hacks . | . . . Recycling Unit Hacks 1 | . 1 . Retrieve Components 1 | . 1 . Scanalyzer . | . . . Garrison Access Hacks . | . . . Unauthorized Hacks 4 | . 2 2 Terminals 2 | . 1 1 Botnet 2 | . 1 1 Fabricators . | . . . Repair Stations . | . . . Recycling Units . | . . . Scanalyzers . | . . . Garrison Access . | . . . Data Cores Recovered . | . . . Used . | . . . Hacking Detections 8 | . 3 5 Full Trace Events 1 | . . 1 Feedback Events . | . . . Feedback Blocked . | . . . Robot Schematics Acquired . | . . . Robots Built . | . . . Matter . | . . . Time . | . . . Total Robot Build Rating . | . . . Part Schematics Acquired . | . . . Parts Built . | . . . Matter . | . . . Time . | . . . Total Part Build Rating . | . . . Parts Repaired . | . . . Time . | . . . Parts Recycled . | . . . Recycled Matter . | . . . Retrieved Matter . | . . . Retrieved Components . | . . . Parts Scanalyzed . | . . . Part Schematics Acquired . | . . . Parts Damaged . | . . . Bothacking | -11 -10 -9 ------------ Run | Scr Mat Mat Used RIF Installer . | . . . Robots Hacked . | . . . Non-combat . | . . . Combat . | . . . Robot Hacks Applied . | . . . Relay Couplers Released . | . . . Robots Rewired . | . . . Allies Hacked . | . . . Hacks Repelled . | . . . Allies | -11 -10 -9 -------- Run | Scr Mat Mat Total Allies . | . . . Largest Group . | . . . Highest-Rated Group . | . . . Highest-Rated Ally . | . . . Total Orders . | . . . Ally Attacks . | . . . Total Damage . | . . . Kills . | . . . Allies Corrupted . | . . . Allies Melted . | . . . Intel | -11 -10 -9 ------- Run | Scr Mat Mat Robot Analysis Total . | . . . Derelict Logs Recovered . | . . . Drone Launches . | . . . Drone Recoveries . | . . . Exploration | -11 -10 -9 ------------- Run | Scr Mat Mat Turns Passed 363 | 19 181 163 Spaces Moved 601 | 35 274 292 Core 444 | 35 117 292 Treads . | . . . Legs . | . . . Wheels . | . . . Hover 157 | . 157 . Flight . | . . . Fastest Speed 50 | 50 50 50 Average Speed 52 | 50 55 50 Slowest Speed 60 | 50 60 50 Overloaded Moves . | . . . Propulsion Burnouts . | . . . Robots Hopped . | . . . Cave-ins Triggered . | . . . Exploration Rate (%) 27 | 2 47 33 Regions Visited 2 Branch Regions . Pre-discovered Areas . | . . . Known Exits Taken 1 | . 1 . Unknown Exits Taken 1 | 1 . . Scrap Searched . | . . . Spaces Dug 4 | . 3 1 Terrain Destroyed 4 | . 3 1 Melee . | . . . Projectile 4 | . 3 1 AOE . | . . . Actions | -11 -10 -9 --------- Run | Scr Mat Mat Total 632 | 35 291 306 Wait . | . . . Move 599 | 34 273 292 Hop . | . . . Pick Up 11 | . 6 5 Fast Attach 9 | 1 5 3 Attach 3 | . 1 2 Detach . | . . . Swap . | . . . Drop 6 | . 3 3 Fire 4 | . 3 1 Melee . | . . . Ram . | . . . Kick . | . . . Crush . | . . . Escape Stasis . | . . . Rewire . | . . . Trap . | . . . Miscellaneous . | . . . Route ------- -11/Scrapyard -10/Materials (discovered 2 exits: *Mat / [*Min]) -9/Materials History --------- Turn | Location | Event 5 | -11/Scrapyard | Discovered new exit (range 14) 20 | -11/Scrapyard | Entered Materials 59 | -10/Materials | Discovered new exit (range 13) 198 | -10/Materials | Discovered new exit (range 7) 200 | -10/Materials | Identified exit to Materials 201 | -10/Materials | Entered another Materials area 201 | -9/Materials | Evolved 2 slots: Utility x2 282 | -9/Materials | Core integrity fell below 50% 312 | -9/Materials | Core integrity fell below 20% 332 | -9/Materials | Build established: Mutant 364 | -9/Materials | Destroyed by Y-45 Defender with Beam Rifle Last Messages --------------- 00303_ Lgt. Armor Plating destroyed. 00304_ Dropped Hcp. Matter Pod. 00305_ Dropped Signal Interpreter. 00305_ Acquired System Shield. 00308_ Dropped Lgt. Nuclear Core. 00308_ Acquired Lgt. Nuclear Core. 00309_ S-10 Pest destroyed. 00310_ Acquired System Shield. 00312_ R-06 Scavenger collects Signal Interpreter. 00314_ R-06 Scavenger collects Hcp. Matter Pod. 00315_ R-06 Scavenger collects Lgt. Ion Engine. 00315_ K-01 Serf collects debris. 00323_ System Shield destroyed. 00326_ U-05 Engineer lays Concrete. 00331_ K-01 Serf collects debris. 00338_ Acquired ECM Suite. 00349_ Acquired Terrain Scan Processor. 00363_ Connecting with Repair Station... 00363_ ALERT: Suspicious activity at Repair Station M001. Dispatching Investigation squad. Map ----- +----------------------------------------------------+ | ???????????????????????????????????? | | ????????????????????????????????????# | | ????????????????????????????????????# | | ????????????????????????????????????# | | ????????######??????????????????????# | | ??????? #??????????????????????# | | ??????#""" #??????????????????????# | | ??????#""" #??????????????????????# | | ??????#""" #??????????????????????# | | ??????#""" #??????????????????????# | | ???????? ???????????????????????# | | ??????#+##+####?????????????????????# | | ??????# ###########???????????# | | ?????##+##+## # *#???????????# | | ?????# # # #???????????# | | ?????# # # """ """ #?????##+#??# | | ?????# # # """ """ #?????# #??# | | ?????# """ # # """ """ #?????# #??# | | ?????# """ # + #?????+ #??# | | ?????#! """ # # #?????# #??# | | ?????######## # #?????# #### | | ?????######## #####+#########?# | | ?????# # #??# + #?# | | ?????# """ # #### # #?# | | ?????# "R + # #?# #### | | ?????# """ #@ # ### #??? | | ?????# "" # ##+####### #??? | | ?????# # #??? | | ?????######## g #??? | | ????????????# ############# #??? | | ????????????# #???????????# #??? | | ????????????# #???????????# #??? | | ????????????# #???????????# #??? | | ????????????# #???????????# ?? | | ????????????? +???????????# ####? | | ????????????? #???????????####+##???? | | ????????????? #?????????????????????? | | ????????????? ?????????????????????? | | ????????????? ?????????????????????? | | ?????????????Y ?????????????????????? | | ????????????? ?????????????????????? | | ?????????????????????????????????????? | | ?????????????????????????????????????? | | ?????????????????????????????????????? | | ?????????????????????????????????????? | | ?????????????????????????????????????? | | ?????????????????????????????????????? | | ?????????????????????????????????????? | | ?????????????????????????????????????? | | | +----------------------------------------------------+ Best States ------------- Heat Dissipation 28 Energy Generation 10 Energy Capacity 125 Matter Stores 300 Matter Capacity 300 Sight Range 16 Terrain Scan Density 85 ECM Strength 1 Armor Coverage 150 Evasion (%) 53 Targeting Accuracy 5 Defensive Hacking 10 Item Schematics ----------------- None Robot Schematics ------------------ None Fabricated ------------ Nothing Alien Tech Used ----------------- None Achievements -------------- None Challenges ------------ None Game ------ Seed NeutrinoTractorRail Manual? 0 Play Time 00:14:19 Cumulative 45.3 hours Start 2020.03.10 @ 22:17:10 End 2020.03.10 @ 22:35:17 Sessions 1 Manual Loads 0 Difficulty Rogue Special Mode None Game No. 30 Rogue 30 Adventurer 0 Explorer 0 Win Type - Total 0 Types 0/0/0/0/0/0/0 Lore% 28 Gallery% 43 Achievement% 33 Wizard Run 0 Options --------- ASCII 1 Keyboard 0 Movement Mouse Keybinds 0 Fullscreen 1 Font 24/Smallcaps Map View 76x50 Tactical HUD 1 Map Filters NONE Filters NONE Steam 1 RUN: f24a2f73-d7c5-449a-b76d-0e844f600630